Cogmind - Beta 13 @@@ ROGUE MODE // 2024.07.12 @ 15:38:32 Player: purzer Result: Core destroyed Performance ------------- Evolutions (3) 1500 Regions Visited (7) 1400 Robots Destroyed (18) 90 Value Destroyed (610) 610 Prototype IDs (2) 40 Alien Tech Used (0) 0 Bonus (814) 814 TOTAL SCORE: 4454 Bonus ------- Follower Combat Kills 14 Entered DSFs 500 Aligned with FarCom 300 Cogmind --------- Core Integrity 0/700 Matter 18/300 Energy 49/100 System Corruption 6% Temperature Critical (1234) Movement Flying (197) Ox2 Location -7/DSF Parts ------- > --- POWER (1) -------- Light Ion Engine > --- PROPULSION (4) --- Xenon Bombardment Thruster Xenon Bombardment Thruster > --- UTILITY (5) ------ Large Storage Unit > --- WEAPON (3) ------- Minigun > --- INVENTORY (15) --- Cesium-ion Thruster Cesium-ion Thruster Xenon Bombardment Thruster Xenon Bombardment Thruster Improved Heat Sink Shotgun AWS/Autocannon Shock Bomb Launcher Peak State ------------ > --- POWER ------------ Ion Engine > --- PROPULSION ------- Light Treads Light Treads Armored Treads Advanced Treads > --- UTILITY ---------- Large Storage Unit Improved Light Armor Plating Shield Generator > --- WEAPON ----------- AWS/Autocannon > --- INVENTORY -------- Light Ion Engine Improved Heat Sink High-capacity Matter Pod Improved Light Armor Plating Shield Generator Heavy EM Pulse Gun Particle Gun Shock Bomb Launcher Rocket Launcher Katana [Rating: 47] Favorites ----------- Power Ion Engine Engine Ion Engine Propulsion Advanced Treads Treads Advanced Treads Flight Unit Cesium-ion Thruster Utility Large Storage Unit Device Shield Generator Storage Large Storage Unit Protection Improved Light Armor Plating Weapon Particle Gun Energy Gun Particle Gun Ballistic Gun Minigun Ballistic Cannon AWS/Autocannon Launcher Rocket Launcher Slashing Weapon Katana Build | -11 -10 -10 -10 -9 -8 -7 -7 ------- Run | Yrd Mat Min Exi Min Mat Fac DSF Slots Evolved 6 | . . . . . 4 2 . Power . | . . . . . . . . Propulsion 2 | . . . . . 2 . . Utility 3 | . . . . . 1 2 . Weapon 1 | . . . . . 1 . . Parts Attached 46 | 6 6 4 . 3 8 2 17 Power 4 | 1 . 1 . . . . 2 Engine 4 | 1 . 1 . . . . 2 Core . | . . . . . . . . Reactor . | . . . . . . . . Propulsion 14 | 2 . 2 . . 2 . 8 Treads 7 | 2 . 2 . . 2 . 1 Leg . | . . . . . . . . Wheel . | . . . . . . . . Hover . | . . . . . . . . Flight 7 | . . . . . . . 7 Utility 9 | 1 2 1 . . 1 2 2 Device 3 | . . . . . 1 1 1 Storage 4 | 1 2 . . . . 1 . Processor . | . . . . . . . . Hackware . | . . . . . . . . Protection 2 | . . 1 . . . . 1 Artifact . | . . . . . . . . Weapon 19 | 2 4 . . 3 5 . 5 Energy Gun 9 | 1 3 . . 2 2 . 1 Energy Cannon . | . . . . . . . . Ballistic Gun 6 | 1 1 . . . 1 . 3 Ballistic Cannon 1 | . . . . . 1 . . Launcher 2 | . . . . . 1 . 1 Special Weapon . | . . . . . . . . Impact Weapon . | . . . . . . . . Slashing Weapon 1 | . . . . 1 . . . Piercing Weapon . | . . . . . . . . Special Melee Weapon . | . . . . . . . . Unidentified Prototypes 2 | . . . . . 1 . 1 Parts Lost 10 | . . . . 1 . . 9 Power 1 | . . . . . . . 1 Propulsion 4 | . . . . . . . 4 Utility 3 | . . . . . . . 3 Weapon 2 | . . . . 1 . . 1 Highest Loss Streak 7 | . . . . 1 . . 7 To Critical Strikes 1 | . . . . . . . 1 Average Slot Usage (%) 96 | . 98 100 100 100 99 100 70 Engine 12 | . 14 14 14 14 9 7 5 Treads 26 | . 28 28 28 28 36 30 12 Device 1 | . . . . . 9 15 4 Storage 15 | . 26 18 14 14 9 15 13 Protection 9 | . . 9 14 14 9 7 5 Energy Gun 23 | . 20 28 28 25 18 15 6 Ballistic Gun 2 | . 7 . . . 7 7 10 Naked Turns . | . . . . . . . . Heaviest Build 46 | 12 35 35 34 34 40 45 46 Greatest Support 82 | 40 40 42 42 42 82 82 82 Greatest Overweight (x) 13 | . . . . . . . 13 Average Overweight (x) . | . . . . . . . 1 Largest Inventory Capacity 15 | 8 15 15 15 15 15 15 15 Average Capacity 14 | 6 9 15 15 15 15 15 15 Most Carried 15 | 5 8 15 15 15 13 12 11 Average Carried 12 | 1 5 12 14 13 11 11 9 Final Capacity 15 | 8 15 15 15 15 15 15 15 Final Carried 15 | 1 7 15 15 14 13 11 10 Class Distribution -------------------- 84% | Mutant 10% | Tank 4% | Skirmisher Dominant Class ---------------- Mutant | -10/Materials Mutant | -10/Mines Mutant | -10/Exiles Mutant | -9/Mines Tank | -8/Materials Tank | -7/Factory Mutant | -7/DSF Resources | -11 -10 -10 -10 -9 -8 -7 -7 ----------- Run | Yrd Mat Min Exi Min Mat Fac DSF Matter Collected 721 | 252 268 40 . 30 49 . 82 Remotely . | . . . . . . . . Salvage Created 712 | . 132 11 . 119 49 . 401 Parts 36 | . 16 1 . . 3 . 16 Haulers Intercepted . | . . . . . . . . Recyclers Shooed . | . . . . . . . . Parts Field Recycled . | . . . . . . . . Retrieved Matter . | . . . . . . . . Parts Self-Destructed . | . . . . . . . . Prevented . | . . . . . . . . Kills | -11 -10 -10 -10 -9 -8 -7 -7 ------- Run | Yrd Mat Min Exi Min Mat Fac DSF Combat Hostiles Destroyed 25 | . 7 1 . 7 1 . 9 Melee 4 | . . . . 4 . . . Guns 17 | . 7 1 . 3 1 . 5 AOE 4 | . . . . . . . 4 Classes Destroyed 7 | . 2 . . 1 1 . 3 Swarmer 7 | . 6 1 . . . . . Grunt 7 | . 1 . . . . . 6 Brawler 1 | . . . . . . . 1 Sentry 1 | . . . . . 1 . . Programmer 1 | . . . . . . . 1 Heavy 1 | . . . . . . . 1 Assembled 7 | . . . . 7 . . . Best Kill Streak 5 | . 3 1 . 5 1 . 4 Combat Bots Only 5 | . 3 1 . 5 1 . 4 Max Kills in Single Turn 1 | . 1 1 . 1 1 . 1 Gunslinging . | . . . . . . . . Exploded 1 | . . . . . . . 1 Melee 1 | . . . . 1 . . . Uniques/NPCs Destroyed . | . . . . . . . . Combat | -11 -10 -10 -10 -9 -8 -7 -7 -------- Run | Yrd Mat Min Exi Min Mat Fac DSF Hostile Shots Fired 178 | . 40 . . 50 6 . 82 Missed 44 | . 7 . . 14 1 . 22 Damage Taken 2755 | . 288 . . 589 71 . 1807 Core 887 | . 30 . . 108 . . 749 Absorbed by Shields 108 | . . . . . 25 . 83 Core Remaining (%) 81 | 100 . . . 44 100 . . Volleys Fired 61 | . 16 2 . 9 3 . 31 Largest 3 | . 2 2 . 2 3 . 3 Hottest 135 | . 110 110 . 110 135 . 123 Shots Fired 149 | . 32 4 . 15 9 . 89 Gun 131 | . 32 4 . 15 9 . 71 Cannon . | . . . . . . . . Launcher 18 | . . . . . . . 18 Special . | . . . . . . . . Kinetic 43 | . . . . . 3 . 40 Thermal 58 | . 16 2 . 6 3 . 31 Explosive 18 | . . . . . . . 18 Electromagnetic 30 | . 16 2 . 9 3 . . Robot Hit Streak 10 | . 2 1 . 4 5 . 10 Robot Miss Streak 4 | . 4 3 . 3 1 . 4 Penetration Max . | . . . . . . . . Secondary Targets 1 | . 1 . . . . . . Max Gunslinging Chain 1 | . 1 . . . . . . Shots Hit Robots 93 | . 13 1 . 12 7 . 60 Core Hits 43 | . 7 1 . 8 2 . 25 Critical Kills . | . . . . . . . . Critical Parts Destroyed 1 | . . . . . . . 1 Critical Strikes 5 | . 3 . . 1 . . 1 Burn 4 | . 3 . . 1 . . . Destroy 1 | . . . . . . . 1 Melee Attacks 5 | . . . . 5 . . . Impact . | . . . . . . . . Slashing 5 | . . . . 5 . . . Piercing . | . . . . . . . . Sneak Attacks . | . . . . . . . . Combat Hostiles . | . . . . . . . . Follow-up Attacks . | . . . . . . . . Damage Inflicted 2106 | . 221 15 . 264 109 . 1497 Guns 1141 | . 221 15 . 112 109 . 684 Cannons . | . . . . . . . . Explosions 813 | . . . . . . . 813 Melee 152 | . . . . 152 . . . Ramming . | . . . . . . . . Kinetic 411 | . . . . . 52 . 359 Thermal 563 | . 134 15 . 45 44 . 325 Explosive 813 | . . . . . . . 813 Electromagnetic 167 | . 87 . . 67 13 . . Impact . | . . . . . . . . Slashing 152 | . . . . 152 . . . Piercing . | . . . . . . . . Highest Corruption 6 | . . . . . . . 6 Average Corruption 4 | . . . . . . . 4 Corruption Purged . | . . . . . . . . Corruption Blocked . | . . . . . . . . Effects 5 | . . . . . . . 5 Message Errors 1 | . . . . . . . 1 Matter Fused 2 | . . . . . . . 2 Heat Flow Errors 1 | . . . . . . . 1 Energy Discharges 1 | . . . . . . . 1 Overload Shots . | . . . . . . . . Overflow Damage . | . . . . . . . . Projectiles . | . . . . . . . . Explosions . | . . . . . . . . Melee . | . . . . . . . . Knockbacks . | . . . . . . . . Impact . | . . . . . . . . Kinetic . | . . . . . . . . Secondary . | . . . . . . . . Self-Inflicted Damage 29 | . . . . . . . 29 Shots 1 | . . . . . . . 1 Rammed . | . . . . . . . . Targets Rammed . | . . . . . . . . Kicked . | . . . . . . . . Crushed . | . . . . . . . . Highest Temperature 1234 | . 346 108 . 162 177 . 1234 Average Temperature 212 | . 128 56 . 50 99 . 395 Received Heat Transfer 429 | . 18 . . . 18 . 393 Effects 19 | . . . . . . . 19 Shutdowns 1 | . . . . . . . 1 Energy Bleed 2 | . . . . . . . 2 Matter Decay 1 | . . . . . . . 1 Short Circuit 3 | . . . . . . . 3 Damage (minor) 2 | . . . . . . . 2 Damage (major) 4 | . . . . . . . 4 Damage (core) 6 | . . . . . . . 6 Siege Activations . | . . . . . . . . Robots Corrupted . | . . . . . . . . Combat Hostiles . | . . . . . . . . Parts Fried . | . . . . . . . . Impact Corruptions . | . . . . . . . . Robots Melted . | . . . . . . . . Combat Hostiles . | . . . . . . . . Parts Melted . | . . . . . . . . Heat Transferred 1591 | . 518 37 . 185 111 . 740 Parts Sabotaged . | . . . . . . . . Parts Stolen . | . . . . . . . . Parts Stripped . | . . . . . . . . Power Chain Reactions . | . . . . . . . . Alert | -11 -10 -10 -10 -9 -8 -7 -7 ------- Run | Yrd Mat Min Exi Min Mat Fac DSF Peak Influence 220 | . 220 85 . . 69 30 186 Initial 85 | . . 85 . . . 30 24 Average 69 | . 81 79 . . 24 30 124 Maximum Alert Level 1 | . 1 . . . . . . Low Security (%) 94 | 100 71 100 . 100 100 100 100 Level 1 5 | . 28 . . . . . . Level 2 . | . . . . . . . . Level 3 . | . . . . . . . . Level 4 . | . . . . . . . . Level 5 . | . . . . . . . . High Security . | . . . . . . . . Max Security . | . . . . . . . . Sterilizations 1 | . . . . . . . 1 Squads Dispatched 3 | . . 1 . . 1 . 1 Investigation 2 | . . 1 . . 1 . . Extermination . | . . . . . . . . Reinforcement 1 | . . . . . . . 1 Assault . | . . . . . . . . Garrison . | . . . . . . . . Intercept . | . . . . . . . . Searches Triggered . | . . . . . . . . Construction Impeded . | . . . . . . . . Haulers Reinforced . | . . . . . . . . Active Scanning Responses . | . . . . . . . . Cargo Convoy Interrupts . | . . . . . . . . Stealth | -11 -10 -10 -10 -9 -8 -7 -7 --------- Run | Yrd Mat Min Exi Min Mat Fac DSF Distress Signals 1 | . 1 . . . . . . Communications Jammed . | . . . . . . . . Distress Signals . | . . . . . . . . Times Spotted 44 | . 9 2 . 23 1 . 9 Peak Tracking Total 20 | . 4 1 . 20 1 . 4 Tactical Retreats 1 | . . . . 1 . . . Traps | -11 -10 -10 -10 -9 -8 -7 -7 ------- Run | Yrd Mat Min Exi Min Mat Fac DSF Traps Triggered 3 | . . . . . 1 . 2 Indirectly . | . . . . . . . . Trap Hack Attempts . | . . . . . . . . Triggered . | . . . . . . . . Disarmed . | . . . . . . . . Reprogrammed . | . . . . . . . . Reused . | . . . . . . . . Traps Extracted . | . . . . . . . . Installed . | . . . . . . . . Triggered . | . . . . . . . . Machines | -11 -10 -10 -10 -9 -8 -7 -7 ---------- Run | Yrd Mat Min Exi Min Mat Fac DSF Machines Disabled 1 | . 1 . . . . . . Max in Single Turn 1 | . 1 . . . . . . Machines Repaired . | . . . . . . . . Machines Dismantled . | . . . . . . . . Machines Sabotaged . | . . . . . . . . Overloaded Fab Kills . | . . . . . . . . Hacking | -11 -10 -10 -10 -9 -8 -7 -7 --------- Run | Yrd Mat Min Exi Min Mat Fac DSF Machines Accessed 8 | . 1 1 4 . 1 1 . Terminals 3 | . 1 . . . 1 1 . Fabricators . | . . . . . . . . Repair Stations . | . . . . . . . . Recycling Units . | . . . . . . . . Scanalyzers . | . . . . . . . . Garrison Access . | . . . . . . . . Total Hacks 56 | . 2 1 49 . 3 1 . Successful 53 | . . 1 49 . 2 1 . Failed 3 | . 2 . . . 1 . . Catastrophic 1 | . 1 . . . . . . Database Lockouts . | . . . . . . . . Manual 4 | . . . 4 . . . . Terminals 6 | . 2 . . . 3 1 . Fabricators . | . . . . . . . . Repair Stations . | . . . . . . . . Recycling Units . | . . . . . . . . Scanalyzers . | . . . . . . . . Garrison Access . | . . . . . . . . Terminal Hacks 53 | . . 1 49 . 2 1 . Record 51 | . . . 49 . 2 . . Open Door 1 | . . 1 . . . . . Open DSF 1 | . . . . . . 1 . Fabricator Hacks . | . . . . . . . . Repair Station Hacks . | . . . . . . . . Recycling Unit Hacks . | . . . . . . . . Scanalyzer . | . . . . . . . . Garrison Access Hacks . | . . . . . . . . Unauthorized Hacks . | . . . . . . . . Terminals . | . . . . . . . . Fabricators . | . . . . . . . . Repair Stations . | . . . . . . . . Recycling Units . | . . . . . . . . Scanalyzers . | . . . . . . . . Garrison Access . | . . . . . . . . Data Cores Recovered . | . . . . . . . . Used . | . . . . . . . . Hacking Detections 3 | . 1 . . . 1 1 . Full Trace Events 1 | . . . . . 1 . . Feedback Events . | . . . . . . . . Feedback Blocked . | . . . . . . . . Robot Schematics Acquired . | . . . . . . . . Robots Built . | . . . . . . . . Authchips . | . . . . . . . . Time . | . . . . . . . . Total Robot Build Rating . | . . . . . . . . Part Schematics Acquired . | . . . . . . . . Parts Built . | . . . . . . . . Authchips . | . . . . . . . . Time . | . . . . . . . . Total Part Build Rating . | . . . . . . . . Parts Repaired . | . . . . . . . . Time . | . . . . . . . . Parts Recycled . | . . . . . . . . Recycled Matter . | . . . . . . . . Retrieved Matter . | . . . . . . . . Retrieved Components . | . . . . . . . . Parts Scanalyzed . | . . . . . . . . Part Schematics Acquired . | . . . . . . . . Parts Damaged . | . . . . . . . . Bothacking | -11 -10 -10 -10 -9 -8 -7 -7 ------------ Run | Yrd Mat Min Exi Min Mat Fac DSF Used RIF Installer . | . . . . . . . . Robots Hacked . | . . . . . . . . Non-combat . | . . . . . . . . Combat . | . . . . . . . . Robot Hacks Applied . | . . . . . . . . Relay Couplers Released . | . . . . . . . . Fabnet Peak Effective % . | . . . . . . . . Robots Rewired . | . . . . . . . . Allies Hacked . | . . . . . . . . Hacks Repelled . | . . . . . . . . Allies | -11 -10 -10 -10 -9 -8 -7 -7 -------- Run | Yrd Mat Min Exi Min Mat Fac DSF Total Allies 2 | . . 2 . . . . . Largest Group 2 | . . 2 2 . . . . Highest-Rated Group 45 | . . 45 45 . . . . Highest-Rated Ally 31 | . . 31 31 . . . . Total Orders . | . . . . . . . . Ally Attacks 5 | . . 5 . . . . . Total Damage 65 | . . 65 . . . . . Kills 2 | . . 2 . . . . . Allies Corrupted . | . . . . . . . . Allies Melted . | . . . . . . . . Intel | -11 -10 -10 -10 -9 -8 -7 -7 ------- Run | Yrd Mat Min Exi Min Mat Fac DSF Robot Analysis Total . | . . . . . . . . Derelict Logs Recovered 1 | . . 1 . . . . . Drone Launches . | . . . . . . . . Drone Recoveries . | . . . . . . . . Exploration | -11 -10 -10 -10 -9 -8 -7 -7 ------------- Run | Yrd Mat Min Exi Min Mat Fac DSF Turns Passed 2616 | 55 301 563 970 192 204 9 322 Spaces Moved 1441 | 36 144 344 616 96 116 5 84 Core 22 | 12 . . . . . . 10 Treads 1392 | 24 144 344 616 96 116 5 47 Legs . | . . . . . . . . Wheels . | . . . . . . . . Hover . | . . . . . . . . Flight 27 | . . . . . . . 27 Fastest Speed 50 | 50 160 157 157 157 158 158 106 Average Speed 160 | 123 160 157 157 157 158 158 224 Slowest Speed 700 | 160 160 160 157 157 158 158 700 Overloaded Moves . | . . . . . . . . Propulsion Burnouts . | . . . . . . . . Robots Hopped . | . . . . . . . . Cave-ins Triggered . | . . . . . . . . Exploration Rate (%) 41 | 3 24 81 93 24 10 . 57 Regions Visited 7 Branch Regions 3 Pre-discovered Areas 2 | . . 1 1 . . . . Known Exits Taken 1 | . . . . . . 1 . Unknown Exits Taken 6 | 1 1 1 1 1 1 . . Scrap Searched 3 | . . 2 . 1 . . . Spaces Dug . | . . . . . . . . Terrain Destroyed 43 | . . . . . . . 43 Melee . | . . . . . . . . Projectile . | . . . . . . . . AOE 43 | . . . . . . . 43 Terrain Rammed . | . . . . . . . . Walls Destroyed . | . . . . . . . . Machines Disabled . | . . . . . . . . Actions | -11 -10 -10 -10 -9 -8 -7 -7 --------- Run | Yrd Mat Min Exi Min Mat Fac DSF Total 1620 | 46 184 359 620 114 132 6 159 Wait 2 | . . . . . . . 2 Move 1434 | 35 143 343 615 95 115 4 84 Hop . | . . . . . . . . Pick Up 44 | 5 13 9 1 1 3 . 12 Fast Attach 2 | 2 . . . . . . . Attach 28 | 4 2 . . 1 7 2 12 Detach 5 | . . . . . 3 . 2 Swap 16 | . 4 4 . 2 1 . 5 Drop 22 | . 6 1 3 1 . . 11 Fire 61 | . 16 2 . 9 3 . 31 Melee 5 | . . . . 5 . . . Ram . | . . . . . . . . Kick . | . . . . . . . . Crush . | . . . . . . . . Escape Stasis . | . . . . . . . . Rewire 1 | . . . 1 . . . . Trap . | . . . . . . . . Miscellaneous . | . . . . . . . . Route ------- -11/Scrapyard -10/Materials -10/Mines (discovered 3 exits: [*Mat x2] / *Exi) -10/Exiles (discovered 2 exits: [*Min x2]) -9/Mines -8/Materials -7/Factory -7/DSF History --------- Turn | Location | Event 11 | -11/Scrapyard | Discovered new exit (range 15) 56 | -11/Scrapyard | Entered Materials 332 | -10/Materials | Build established: Mutant 335 | -10/Materials | Discovered new exit (range 13) 357 | -10/Materials | Entered Mines 461 | -10/Mines | Learned location of Zion (-7) 475 | -10/Mines | Met a Derelict shopkeep closing up shop 604 | -10/Mines | Discovered new exit (range 5) 634 | -10/Mines | Discovered new exit (range 11) 914 | -10/Mines | Deemed a non-threat by the Exiles lab entrance 914 | -10/Mines | Discovered new exit (range 5) 920 | -10/Mines | Entered Exiles 920 | -10/Exiles | Accompanied by 2 allies 946 | -10/Exiles | Discovered new exit (range 15) 950 | -10/Exiles | Led the pair of lost Derelicts to a safe place 990 | -10/Exiles | Met 8R-AWN 1018 | -10/Exiles | Met EX-HEX 1115 | -10/Exiles | Met EX-DEC 1144 | -10/Exiles | Visited The Gauntlet 1429 | -10/Exiles | Discovered new exit (range 12) 1528 | -10/Exiles | Met EX-BIN 1549 | -10/Exiles | Aligned with FarCom system 1551 | -10/Exiles | Given EX-Vault access code 1725 | -10/Exiles | Opened EX-Vault 1735 | -10/Exiles | Found Prototype Ballistic Cannon 1769 | -10/Exiles | Warned to stay clear of 0b10 Research branches 1890 | -10/Exiles | Left Exiles lab with AWS/Autocannon 1890 | -10/Exiles | Entered Mines 1891 | -9/Mines | Assembled infested the area 1896 | -9/Mines | Assisted by a Guerilla fighting off Assembled 1949 | -9/Mines | Core integrity fell below 50% 2067 | -9/Mines | Discovered new exit (range 7) 2082 | -9/Mines | Entered Materials 2082 | -8/Materials | Evolved 4 slots: Propulsion x2, Utility x1, Weapon x1 2087 | -8/Materials | Identified AWS/Autocannon 2249 | -8/Materials | Discovered new exit (range 11) 2286 | -8/Materials | Entered Factory 2286 | -7/Factory | Evolved 2 slots: Utility x2 2295 | -7/Factory | Identified exit to DSF 2295 | -7/Factory | Entered DSF 2334 | -7/DSF | Additional patrols routed to DSF 2493 | -7/DSF | Sterilization system engaged 2502 | -7/DSF | Lost 7 parts (1p4n1u1w) 2513 | -7/DSF | Ambient heat levels rising (+10) 2528 | -7/DSF | Ambient heat levels rising (+10) 2543 | -7/DSF | Ambient heat levels rising (+10) 2558 | -7/DSF | Ambient heat levels rising (+10) 2573 | -7/DSF | Ambient heat levels rising (+10) 2588 | -7/DSF | Ambient heat levels rising (+10) 2595 | -7/DSF | Core integrity fell below 50% 2603 | -7/DSF | Ambient heat levels rising (+10) 2617 | -7/DSF | Core integrity fell below 20% 2618 | -7/DSF | Core destroyed Last Messages --------------- Shotgun broken. Overheating: Short circuit. Dropped Broken Shotgun. Triggered Alarm Trap. An alarm sounds. Overheating: Core damaged (-98). P6QGVFJBU|RPOWAHO5DJ:/AQN3R Overheating: Broken Minigun damaged (-18). Overheating: Core damaged (-77). ALERT: Ambient heat levels +10. Overheating: Xenon Bombardment Thruster damaged (-14). Overheating: Lrg. Storage Unit damaged (-172). Overheating: Core damaged (-91). Overheating: Energy bleed (-7). Overheating: Broken Minigun damaged (-5). Overheating: Matter decay (-4). Overheating: Energy bleed (-8). Overheating: Core damaged (-70). Overheating: Core damaged (-140). Map ----- +----------------------------------------------------+ | | | | | | | | | | | | | | | | | ??????????????????????????????????? | | ??????????????????????????????????? | | ??????????????????????????????????? | | ??????????????????????????????????? | | ??????????????????????????????????? | | ??????????????????????????????????? | | ????????##"#??????????????????????? | | ????????""""??????????????????????? | | ???????"""""??????????????????????? | | ????????" ??????????????????????? | | ????????" ??????????????????????? | | ????????" ??????????????????????? | | ????????# #??????????????????????? | | ???????## ##?????????????????????? | | ???????# !???????????? ?????????? | | ???????# !??????????= ?????????? | | ???????## ###??????### ????????? | | ???????#! @!!#???????!! ????????? | | ???????#! !!#???????!!" ????????? | | ???????#! !!#????????!%" !???????? | | ??????### ########???#" ##?####?# | | ??????# #?!!!#!!!###* ##!!!# | | ??????# ##!!!#!!!##%= !!!# | | ??????#== != | | ??????#== ! | | ??????#== [% ? | | ??????# ##[[[#[[[## !!#?? | | ??????# #?[[[#??[## !!#?? | | ??????### ######??### ##???? | | ???????#= [==#?????# = #???? | | ???????#= ==#?????# ##??? | | ???????#= #?????## # #??? | | ???????## ###??????## # #??? | | ???????# ==#??????# ##??? | | ???????# =#??????# ###???? | | ???????## ########## !#?????? | | ??????### !### #===###/% "##?????? | | ????###"" /=## #===###%*[###?????? | | ????""""" [[! !%"%" == #?????? | | ????"##"" " [ #?????? | | ??????#"""""##==# #// #?????? | | ??????#"""""#########// [[#?????? | +----------------------------------------------------+ Best States ------------- Heat Dissipation 48 Energy Generation 12 Energy Capacity 265 Matter Stores 500 Matter Capacity 500 Sight Range 16 Terrain Scan Density 10 Armor Coverage 150 Evasion (%) 50 Recoil Reduction 4 Item Schematics ----------------- None Robot Schematics ------------------ None Fabricated ------------ Nothing Alien Tech Used ----------------- None Achievements -------------- Crack Shot Hunted I Survived The Infestation Librarian Tourist Challenges ------------ None Game ------ Seed SmartbombTransmissionStick Manual? 0 Play Time 00:36:10 Cumulative 2.5 hours Start 2024.07.12 @ 15:00:11 End 2024.07.12 @ 15:38:32 Sessions 1 Manual Loads 0 Difficulty Rogue Special Mode None Game No. 4 Rogue 4 Adventurer 0 Explorer 0 Win Type - Total 0 Types 0/0/0/0/0/0/0/0/0 Lore% 10 Gallery% 8 Achievement% 11 Wizard Run 0 Options --------- Layout 1 ASCII 0 Keyboard 0 Movement Mouse Keybinds 0 Fullscreen 1 Font 24/Smallcaps Map View 50x35 Zoom Use 0% Tactical HUD 0 Map Filters NONE Filters NONE Steam 1 RUN: 2f35cc97-4330-41c5-aceb-67b272898c70